bitfinex/quotes_SOLUSD_20260213
["timestamp","ask_amount","ask_price","bid_price","bid_amount"]
[1770951112298,0.47655219,79.103,79.073,0.46086705]
[1770951112482,0.47655219,79.119,79.09,10.57203476]
[1770951112793,0.47655219,79.115,79.09,10.57203476]
[1770951112971,0.47655219,79.115,79.08,10.57203476]
[1770951113782,0.47655219,79.109,79.06,10.57203476]
[1770951115191,12.64094655,79.108,79.05,54.1]
[1770951115394,0.47655219,79.099,79.05,23.2221104]
[1770951115979,0.47655219,79.099,79.016,4.61729252]
[1770951115980,10.57203476,79.08,79.042,12.6514539]
[1770951116188,0.47655219,79.079,79.031,12.65326264]
[1770951116496,0.47655219,79.079,79.03,10.57203476]
[1770951116687,0.47655219,79.079,78.972,50.6507451]
[1770951116688,0.47655219,79.069,79.02,23.22691941]
[1770951116879,0.47655219,79.059,79.02,23.22691941]
[1770951117091,0.47655219,79.059,79.03,10.57203476]
[1770951117289,0.47655219,79.068,79.04,10.57203476]
[1770951117979,0.47655219,79.068,79.039,12.65191614]
[1770951118181,0.47655219,79.068,79.031,0.46086705]
[1770951118380,0.47655219,79.068,79.032,12.65310254]
[1770951119596,0.47655219,79.066,79.03,10.57203476]
[1770951120097,0.47655219,79.076,79.041,0.46086705]
[1770951120793,0.47655219,79.076,79.04,10.57203476]
[1770951121002,0.46063419,79.097,79.051,0.47133203]
[1770951121582,0.46063419,79.097,79.04,54.1]
[1770951121583,0.46063419,79.089,79.042,0.47133203]
[1770951121805,0.46063419,79.087,79.041,12.65166179]
[1770951122097,0.46063419,79.087,79.05,11.02548633]
[1770951122300,0.46063419,79.087,79.051,0.47133203]
[1770951122599,0.46063419,79.087,79.041,44.28081627]
[1770951122600,0.46063419,79.109,79.08,11.02548633]
[1770951122896,0.46063419,79.117,79.09,10.5541543]
[1770951123298,0.46063419,79.125,79.1,10.5541543]
[1770951123497,0.46063419,79.124,79.08,10.5541543]
[1770951123801,12.6385501,79.123,79.081,12.64526245]
[1770951124104,0.46063419,79.122,79.081,12.64526245]
[1770951124896,0.46063419,79.122,79.075,54.12]
[1770951125283,0.46063419,79.122,79.07,10.5541543]
[1770951125284,0.46063419,79.122,79.07,23.20112062]
[1770951125591,0.46063419,79.119,79.07,10.5541543]
[1770951125783,0.46063419,79.119,79.071,12.64686168]
[1770951125983,0.46063419,79.117,79.071,12.64686168]
[1770951126789,0.46063419,79.117,79.08,10.5541543]
[1770951126985,0.46063419,79.117,79.081,0.47133203]
[1770951127283,0.46063419,79.117,79.09,10.5541543]
[1770951127998,0.46063419,79.115,79.09,10.5541543]
[1770951128207,0.46063419,79.115,79.085,12.64460691]
[1770951129910,0.46063419,79.113,79.085,12.64460691]
[1770951130592,0.46063419,79.113,79.09,10.5541543]
[1770951130992,0.46063419,79.122,79.09,10.5541543]
[1770951131705,0.46063419,79.119,79.073,0.47133203]
[1770951131894,0.46063419,79.117,79.081,0.47133203]
[1770951132099,0.46063419,79.117,79.09,10.5541543]
[1770951132284,0.46063419,79.117,79.081,0.47133203]
[1770951132489,0.46063419,79.117,79.08,10.5541543]
[1770951133494,12.63966833,79.116,79.081,12.64526245]
[1770951133701,0.46063419,79.115,79.081,12.64526245]
[1770951135207,0.46063419,79.113,79.08,10.5541543]
[1770951135414,0.46063419,79.113,79.081,12.64526245]
[1770951137817,0.46063419,79.111,79.081,12.64526245]
[1770951138000,0.46063419,79.108,79.061,0.47133203]
[1770951138195,0.46063419,79.106,79.071,0.47133203]
[1770951138398,0.46063419,79.114,79.081,0.47133203]
[1770951138620,0.46063419,79.131,79.091,0.47133203]
[1770951139127,0.46063419,79.129,79.091,0.47133203]
[1770951139420,0.46063419,79.127,79.091,0.47133203]
[1770951139802,0.46063419,79.125,79.091,0.47133203]
[1770951140001,0.46063419,79.125,79.092,12.64350376]
[1770951140319,0.46063419,79.125,79.091,0.47133203]
[1770951141020,0.46063419,79.125,79.092,12.64350376]
[1770951141499,0.46063419,79.125,79.092,13.11483579]
[1770951141704,0.46063419,79.125,79.1,10.5541543]
[1770951141920,0.46063419,79.123,79.095,12.64293256]
[1770951144224,0.46063419,79.121,79.095,0.47133203]
[1770951144424,0.46063419,79.121,79.092,0.47133203]
[1770951147107,0.46063419,79.121,79.093,12.64334391]
[1770951147532,0.46063419,79.121,79.093,13.11467594]
[1770951148508,0.46063419,79.119,79.093,12.64334391]
[1770951150320,0.46063419,79.119,79.093,12.01115391]
[1770951150515,0.45379689,79.109,79.064,0.47052747]
[1770951150726,0.45379689,79.107,79.071,0.47052747]
[1770951151022,0.45379689,79.117,79.091,0.47052747]
[1770951152210,0.45379689,79.117,79.09,10.5541543]
[1770951152618,0.45379689,79.117,79.091,12.64366362]
[1770951157326,0.45379689,79.117,79.091,13.13389493]
[1770951160249,12.63880513,79.122,79.092,0.49023131]
[1770951160445,13.11032397,79.122,79.092,0.49023131]
[1770951160640,0.47151884,79.121,79.092,0.49023131]
[1770951161353,31.59278361,79.132,79.091,12.64366362]
[1770951161354,0.47151884,79.151,79.111,0.49023131]
[1770951161540,0.47151884,79.151,79.14,10.5541543]
[1770951162051,0.47151884,79.151,79.13,10.5541543]
[1770951164838,0.47151884,79.151,79.124,12.63839037]
[1770951165044,0.47151884,79.149,79.124,12.63839037]
[1770951165943,0.1,79.21,79.148,38.65023131]
[1770951166142,44.16515243,79.248,79.2,3.93121611]
[1770951166355,12.61861498,79.248,79.21,4.43122285]
[1770951166654,3.93121611,79.24,79.183,0.50000674]
[1770951166838,10.5119426,79.24,79.185,0.50000674]
[1770951167039,0.1,79.23,79.185,0.50000674]
[1770951167238,0.1,79.23,79.201,0.50000674]
[1770951167435,50.43233812,79.315,79.211,0.49023131]
[1770951167660,12.61002244,79.302,79.231,0.49023131]
[1770951167956,0.34616884,79.279,79.231,0.49023131]
[1770951168146,0.34616884,79.259,79.213,0.49023131]
[1770951168332,0.34616884,79.259,79.071,35.30641016]
[1770951168333,0.34616884,79.219,79.185,0.49023131]
[1770951168839,0.34706052,79.209,79.185,0.49023131]
[1770951169047,10.5119426,79.22,79.16,10.5119426]
[1770951169363,10.5119426,79.22,79.161,36.82]
[1770951169551,13.0932895,79.229,79.161,36.82]
[1770951169757,10.5119426,79.22,79.161,36.82]
[1770951169952,0.47151884,79.228,79.161,36.82]
[1770951170153,0.47151884,79.209,79.161,36.82]
[1770951170660,10.5119426,79.21,79.162,54.16]
[1770951170856,10.5119426,79.22,79.162,54.16]
[1770951171055,10.5119426,79.22,79.171,0.49023131]
[1770951171642,10.5119426,79.23,79.171,0.49023131]
[1770951171842,0.47151884,79.236,79.171,0.49023131]
[1770951172762,10.5119426,79.23,79.173,0.49023131]
[1770951173063,10.5119426,79.22,79.175,0.49023131]
[1770951173363,0.47151884,79.219,79.175,0.49023131]
[1770951173974,0.47151884,79.219,79.176,0.49023131]
[1770951174763,0.47151884,79.219,79.178,0.49023131]
[1770951175150,0.47151884,79.209,79.178,0.49023131]
[1770951176164,0.47151884,79.209,79.177,12.6299304]
[1770951176471,0.47151884,79.209,79.178,0.49023131]
[1770951176650,0.47151884,79.217,79.18,0.49023131]
[1770951178856,0.47151884,79.217,79.182,0.49023131]
[1770951180847,0.47151884,79.217,79.16,61.04209209]
[1770951180848,0.47151884,79.217,79.183,13.11033143]
[1770951181052,0.46784383,79.22,79.184,0.48135804]
[1770951181480,0.46784383,79.218,79.184,0.48135804]
[1770951181876,10.5119426,79.2,79.178,66.72967613]
[1770951182172,0.46784383,79.199,79.178,66.72967613]
[1770951182348,0.46784383,79.219,79.179,0.48135804]
[1770951182971,0.46784383,79.219,79.181,0.48135804]
[1770951183490,10.51820612,79.21,79.181,0.48135804]
[1770951183787,10.51820612,79.21,79.174,12.63027869]
[1770951183788,0.46784383,79.209,79.174,12.63027869]
[1770951183986,0.46784383,79.189,79.163,12.63215156]
[1770951185176,0.46784383,79.189,79.155,13.11479875]
[1770951185374,0.46784383,79.189,79.156,0.48135804]
[1770951187076,0.46784383,79.189,79.157,12.63312151]
[1770951188883,0.46784383,79.189,79.157,13.11447955]
[1770951189789,0.46784383,79.189,79.157,44.69728334]
[1770951190572,0.46784383,79.189,79.157,44.2159253]
[1770951190793,0.46784383,79.199,79.159,12.63280233]
[1770951190975,0.46784383,79.199,79.16,0.48135804]
[1770951193587,0.46784383,79.199,79.161,12.63248316]
[1770951193784,0.46784383,79.199,79.162,0.48135804]
[1770951195393,0.46784383,79.199,79.164,0.48135804]
[1770951195892,0.46784383,79.197,79.164,0.48135804]
[1770951196094,10.51820612,79.19,79.164,0.48135804]
[1770951196280,0.46784383,79.197,79.164,0.48135804]
[1770951197175,12.62658147,79.198,79.156,54.08]
[1770951197176,0.46784383,79.189,79.162,12.63223907]
[1770951197396,0.46784383,79.189,79.157,12.63312151]
[1770951197697,0.46784383,79.179,79.145,0.48135804]
[1770951198685,0.46784383,79.169,79.144,12.6351966]
[1770951200089,0.46784383,79.159,79.139,12.63593527]
[1770951201798,0.46784383,79.159,79.131,13.11863041]
[1770951201999,0.46784383,79.159,79.132,0.48135804]
[1770951202495,10.51820612,79.19,79.151,0.48135804]
[1770951202696,0.46784383,79.197,79.161,0.48135804]
[1770951203880,0.46784383,79.197,79.162,12.63232358]
[1770951204077,0.46784383,79.232,79.163,0.48135804]
[1770951204286,49.23736947,79.315,79.162,12.63232358]
[1770951204287,12.61002244,79.302,79.222,5.36086188]
[1770951204501,50.41682552,79.339,79.21,4.61729252]
[1770951204502,50.38235985,79.393,79.291,0.48135804]
[1770951204702,50.3749345,79.405,79.318,6.59731597]
[1770951204703,10.51820612,79.35,79.318,6.59731597]
[1770951204997,10.51820612,79.33,79.318,6.59731597]
[1770951205197,10.51820612,79.34,79.318,6.59731597]
[1770951205398,10.51820612,79.33,79.318,5.61776036]
[1770951207183,70.97884498,79.516,79.319,0.52051467]
[1770951207381,10.51820612,79.37,79.32,0.52051467]
[1770951207605,10.51820612,79.36,79.32,0.52051467]
[1770951207982,10.51820612,79.35,79.32,0.52051467]
[1770951208402,40.58,79.378,79.318,5.61776036]
[1770951208403,10.51820612,79.33,79.318,5.61776036]
[1770951208814,10.01820612,79.33,79.318,5.61776036]
[1770951209000,10.01820612,79.33,79.278,0.52051467]
[1770951209329,4.61729252,79.342,79.278,0.52051467]
[1770951209330,10.51820612,79.31,79.278,0.52051467]
[1770951209487,10.51820612,79.31,79.28,0.52051467]
[1770951209906,10.51820612,79.33,79.281,0.52051467]
[1770951210205,40.58,79.335,79.28,10.51820612]
[1770951210206,10.51820612,79.32,79.283,0.52051467]
[1770951210399,10.51820612,79.33,79.283,0.52051467]
[1770951210593,10.51820612,79.33,79.282,44.14621225]
[1770951210594,10.51820612,79.35,79.301,0.52051467]
[1770951210795,10.01820612,79.35,79.301,0.52051467]
[1770951210991,17.66,79.361,79.301,0.52051467]
[1770951211204,40.58,79.373,79.301,0.52051467]
[1770951211411,10.51820612,79.36,79.311,0.52051467]
[1770951211907,10.51820612,79.32,79.283,0.52051467]
[1770951212101,10.51820612,79.31,79.283,0.52051467]
[1770951212497,10.01820612,79.31,79.284,12.61288532]
[1770951212694,10.01820612,79.31,79.283,0.52051467]
[1770951213004,10.51820612,79.3,79.263,0.52051467]
[1770951213190,10.51820612,79.31,79.263,0.52051467]
[1770951213390,10.51820612,79.32,79.271,0.52051467]
[1770951213589,10.51820612,79.33,79.281,0.52051467]
[1770951213786,10.51820612,79.34,79.291,0.52051467]
[1770951214204,10.51820612,79.34,79.293,0.52051467]
[1770951214602,10.51820612,79.36,79.311,0.52051467]
[1770951214918,50.48448883,79.39,79.311,0.52051467]
[1770951214919,10.51820612,79.35,79.311,0.52051467]
[1770951216494,10.01820612,79.35,79.313,0.52051467]
[1770951216857,0.02103283,79.358,79.313,0.52051467]
[1770951217119,10.53923895,79.35,79.313,0.52051467]
[1770951217498,40.46,79.368,79.313,0.52051467]
[1770951217499,10.51820612,79.36,79.313,0.52051467]
[1770951217709,0.02103283,79.349,79.313,0.52051467]
[1770951217895,0.0224071,79.367,79.313,0.52051467]
[1770951218092,50.36518021,79.42,79.312,12.60843251]
[1770951218093,10.51820612,79.38,79.331,0.52051467]
[1770951218504,10.54061322,79.38,79.333,0.52051467]
[1770951218794,0.0224071,79.379,79.333,0.52051467]
[1770951219121,0.02376136,79.349,79.315,12.60790621]
[1770951219618,0.02376136,79.349,79.316,0.52051467]
[1770951219806,10.51820612,79.35,79.316,0.52051467]
[1770951220492,10.51820612,79.34,79.305,0.53239535]
[1770951220715,10.51820612,79.32,79.289,12.61201209]
[1770951221050,10.51820612,79.32,79.287,0.53239535]
[1770951221628,10.51820612,79.33,79.287,0.53239535]
[1770951222031,10.51820612,79.32,79.287,0.53239535]
[1770951224644,10.51820612,79.32,79.288,12.61224901]
[1770951225147,10.51820612,79.32,79.289,0.53239535]
[1770951226021,12.60621464,79.326,79.289,0.53239535]
[1770951227045,12.60621464,79.326,79.291,0.53239535]
[1770951227247,10.51820612,79.32,79.291,0.53239535]
[1770951230122,12.60546608,79.331,79.293,0.53239535]
[1770951230338,10.51820612,79.32,79.293,0.53239535]
[1770951230922,10.51820612,79.32,79.287,0.53239535]
[1770951231330,10.51820612,79.31,79.278,13.14615092]
[1770951231747,10.51820612,79.3,79.278,13.14615092]
[1770951232426,10.51820612,79.3,79.278,0.53239535]
[1770951233437,10.51820612,79.29,79.263,0.53239535]
[1770951233630,10.51820612,79.29,79.258,12.61686994]
[1770951233836,10.51820612,79.29,79.254,0.53239535]
[1770951234142,10.51820612,79.29,79.246,31.54725878]
[1770951234143,12.61208994,79.289,79.255,0.53239535]
[1770951234949,0.0200613,79.288,79.255,0.53239535]
[1770951235338,0.0200613,79.288,79.247,0.53239535]
[1770951235339,10.51820612,79.28,79.247,0.53239535]
[1770951235649,0.0200613,79.288,79.247,0.53239535]
[1770951236637,0.0200613,79.288,79.249,0.53239535]
[1770951237239,0.02233448,79.269,79.241,12.61972968]
[1770951237438,0.02233448,79.269,79.242,0.53239535]
[1770951238761,0.0234469,79.268,79.242,0.53239535]
[1770951238936,0.0234469,79.268,79.243,12.61941117]
[1770951239146,10.51820612,79.27,79.243,12.61941117]
[1770951239147,0.02454767,79.276,79.244,0.53239535]
[1770951239447,0.02454767,79.298,79.251,0.53239535]
[1770951239630,0.02454767,79.296,79.251,0.53239535]
[1770951240435,10.51820612,79.29,79.251,0.53239535]
[1770951240837,0.02454767,79.296,79.253,0.53500544]
[1770951241230,10.54597148,79.29,79.253,0.53500544]
[1770951242131,12.61107861,79.296,79.245,66.67901202]
[1770951242132,0.02881503,79.279,79.245,66.67901202]
[1770951242326,0.02881503,79.269,79.231,0.53500544]
[1770951242634,10.51820612,79.26,79.231,0.53500544]
[1770951243041,10.51820612,79.26,79.233,0.53500544]
[1770951243432,10.51820612,79.26,79.233,0.40724544]
[1770951243848,0.15875197,79.267,79.233,0.40724544]
[1770951244043,0.15875197,79.276,79.24,10.51820612]
[1770951244931,0.15875197,79.276,79.24,10.5009581]
[1770951245432,0.15875197,79.276,79.232,44.17407107]
[1770951245433,0.15985954,79.269,79.241,12.61972968]
[1770951246530,10.5009581,79.27,79.235,0.53500544]
[1770951246747,100.84517232,79.33,79.251,0.53500544]
[1770951246748,0.16095948,79.297,79.251,0.53500544]
[1770951246943,0.16095948,79.297,79.261,0.53500544]
[1770951247336,0.16203696,79.349,79.253,0.53500544]
[1770951247538,0.16203696,79.289,79.253,0.53500544]
[1770951247742,0.16203696,79.289,79.252,12.61797809]
[1770951247957,10.5009581,79.27,79.245,0.53500544]
[1770951248145,10.5009581,79.27,79.246,12.61893344]
[1770951248460,17.64,79.277,79.246,13.15393888]
[1770951248659,17.64,79.277,79.247,0.53500544]
[1770951249257,10.5009581,79.27,79.247,0.53500544]
[1770951249460,10.5009581,79.27,79.248,12.61861498]
[1770951249959,0.16416936,79.276,79.248,12.61861498]
[1770951250161,0.16416936,79.276,79.249,0.53500544]
[1770951251357,0.16625495,79.269,79.23,0.53500544]
[1770951251536,0.16625495,79.269,79.231,12.62132246]
[1770951251537,0.16625495,79.267,79.231,12.62132246]
[1770951252152,0.16625495,79.267,79.232,0.53500544]
[1770951252354,40.22,79.266,79.232,0.53500544]
[1770951252753,10.5009581,79.28,79.232,0.53500544]
[1770951252954,40.22,79.279,79.232,0.53500544]
[1770951253451,40.22,79.279,79.234,0.53500544]
[1770951254154,10.5009581,79.28,79.234,0.53500544]
[1770951254655,50.7209581,79.28,79.234,0.53500544]
[1770951255072,40.22,79.28,79.234,0.53500544]
[1770951256236,40.22,79.28,79.23,10.5009581]
[1770951256237,40.22,79.28,79.236,0.53500544]
[1770951256437,0.17125363,79.279,79.236,0.53500544]
[1770951256640,40.2,79.278,79.236,0.53500544]
[1770951257162,0.17222901,79.277,79.236,0.53500544]
[1770951257347,29.08,79.276,79.236,0.53500544]
[1770951257654,31.52313912,79.307,79.251,0.53500544]
[1770951257655,0.17222901,79.307,79.251,0.53500544]
[1770951257848,10.5009581,79.3,79.251,0.53500544]
[1770951258047,0.17317589,79.298,79.251,0.53500544]
[1770951258250,0.17317589,79.338,79.256,4.61729252]
[1770951258457,0.17317589,79.336,79.291,0.53500544]
[1770951258649,0.17317589,79.334,79.291,0.53500544]
[1770951258954,0.17410915,79.309,79.271,0.53500544]
[1770951259159,0.17410915,79.319,79.271,0.53500544]
[1770951260354,10.5009581,79.31,79.271,0.53500544]
[1770951260550,0.17503347,79.312,79.273,0.53500544]
[1770951261157,0.17503347,79.312,79.28,10.5009581]
[1770951261358,0.17503347,79.312,79.281,0.53500544]
[1770951262368,0.17503347,79.312,79.282,12.6132035]
[1770951262757,0.17503347,79.312,79.283,0.53500544]
[1770951264851,40.12,79.311,79.285,0.53500544]
[1770951265741,40.12,79.313,79.286,12.61256716]
[1770951266146,40.12,79.313,79.286,13.1475726]
[1770951266359,40.12,79.313,79.287,0.53500544]
[1770951266765,40.14,79.312,79.288,12.61224901]
[1770951267072,40.14,79.312,79.289,0.53500544]
[1770951267572,40.14,79.313,79.289,0.53500544]
[1770951271758,0.18520933,79.312,79.29,12.61193088]
[1770951274466,0.18520933,79.312,79.29,0.53089106]
[1770951274776,40.2,79.311,79.29,0.53089106]
[1770951275154,39.07681432,79.317,79.3,10.5009581]
[1770951275357,39.07681432,79.317,79.301,0.53089106]
[1770951275779,39.07681432,79.317,79.3,10.5009581]
[1770951275974,10.5009581,79.35,79.311,0.53089106]
[1770951276280,40.22,79.355,79.321,0.53089106]
[1770951276469,40.22,79.354,79.322,12.60684299]
[1770951276670,40.22,79.353,79.323,0.53089106]
[1770951277583,10.5009581,79.35,79.321,12.60700192]
[1770951278165,0.52748248,79.349,79.321,12.60700192]
[1770951278373,0.52748248,79.347,79.321,12.60700192]
[1770951278571,0.52748248,79.347,79.317,12.6076377]
[1770951278973,0.52748248,79.347,79.32,10.5009581]
[1770951280076,0.52748248,79.347,79.321,0.53089106]
[1770951280278,40.24,79.354,79.331,0.53089106]
[1770951280784,40.24,79.354,79.333,0.53089106]
[1770951281485,40.24,79.353,79.333,0.53089106]
[1770951282478,0.52748248,79.352,79.3,0.53089106]
[1770951282679,0.52748248,79.347,79.301,0.53089106]
[1770951282981,40.26,79.346,79.321,0.53089106]
[1770951283171,0.52748248,79.354,79.321,0.53089106]
[1770951283371,40.24,79.353,79.321,0.53089106]
[1770951283687,0.52748248,79.352,79.321,0.53089106]
[1770951283871,11.02844058,79.35,79.321,0.53089106]
[1770951284078,0.52748248,79.348,79.313,0.53089106]
[1770951285382,0.52748248,79.347,79.314,13.13900564]
[1770951286581,12.60274768,79.348,79.3,10.5009581]
[1770951286582,0.52748248,79.339,79.3,10.5009581]
[1770951287086,0.52748248,79.339,79.301,12.61018146]
[1770951287664,0.52748248,79.329,79.301,12.61018146]
[1770951287876,0.52748248,79.329,79.302,0.53089106]
[1770951288382,40.24,79.328,79.302,0.53089106]
[1770951290367,0.52748248,79.329,79.302,0.53089106]
[1770951290568,40.24,79.328,79.311,0.53089106]
[1770951291575,0.52748248,79.337,79.311,0.53089106]
[1770951291576,40.24,79.33,79.311,0.53089106]
[1770951292288,40.24,79.329,79.311,0.53089106]
[1770951293194,0.52748248,79.337,79.312,12.60843251]
[1770951293401,40.24,79.329,79.312,12.60843251]
[1770951293571,0.52748248,79.328,79.312,12.60843251]
[1770951293885,0.52748248,79.328,79.308,12.60897051]
[1770951294593,0.52748248,79.328,79.302,12.60990362]
[1770951296294,0.52748248,79.326,79.298,12.61065852]
[1770951297482,0.52748248,79.324,79.298,12.61065852]
[1770951297891,40.24,79.325,79.282,0.53089106]
[1770951297892,0.52748248,79.319,79.282,0.53089106]
[1770951298989,3.91357845,79.32,79.284,0.53089106]
[1770951299188,0.52748248,79.319,79.284,0.53089106]
[1770951299489,40.24,79.318,79.291,0.53089106]
[1770951299696,40.76748248,79.318,79.291,0.53089106]
[1770951299882,0.52748248,79.317,79.291,0.53089106]
[1770951300083,40.24,79.318,79.291,0.53089106]
[1770951300384,0.52748248,79.317,79.291,0.53089106]
[1770951301392,0.52748248,79.317,79.292,12.61161277]
[1770951301598,0.52748248,79.317,79.293,0.52768253]
[1770951302704,0.53824344,79.309,79.288,12.61215619]
[1770951302878,3.91357845,79.37,79.301,0.52768253]
[1770951303077,40.3,79.369,79.321,0.52768253]
[1770951303290,3.91357845,79.36,79.321,0.52768253]
[1770951303591,3.91357845,79.36,79.288,12.61215619]
[1770951303592,3.91357845,79.34,79.291,0.52768253]
[1770951304677,3.91357845,79.34,79.293,0.52768253]
[1770951304678,52.88422402,79.339,79.293,0.52768253]
[1770951304878,4.20512078,79.33,79.293,0.52768253]
[1770951305090,0.29035824,79.329,79.292,12.61161277]
[1770951305291,0.29035824,79.319,79.292,12.61161277]
[1770951305689,0.29035824,79.319,79.292,13.1392953]
[1770951305875,3.91476254,79.33,79.293,0.52768253]
[1770951306079,0.29195603,79.335,79.293,0.52768253]
[1770951306300,0.29195603,79.329,79.293,0.52768253]
[1770951306503,0.29195603,79.319,79.293,0.52768253]
[1770951306799,0.29195603,79.317,79.294,12.61129467]
[1770951307397,44.19476254,79.32,79.295,0.52768253]
[1770951307780,3.91476254,79.32,79.295,0.52768253]
[1770951308676,12.6073198,79.319,79.295,0.52768253]
[1770951308877,12.9039591,79.319,79.295,0.52768253]
[1770951309102,0.2966393,79.318,79.295,0.52768253]
[1770951309501,0.2966393,79.318,79.285,0.52768253]
[1770951309797,0.2966393,79.309,79.282,12.61317628]
[1770951310096,52.8873198,79.319,79.271,12.6148015]
[1770951310097,0.29816746,79.299,79.271,12.6148015]
[1770951310399,40.3,79.298,79.272,0.52768253]
[1770951310593,0.29816746,79.307,79.272,0.52768253]
[1770951311095,0.29816746,79.307,79.274,0.52768253]
[1770951312279,0.30116686,79.306,79.274,0.52768253]
[1770951313910,3.91476254,79.3,79.275,12.61431725]
[1770951314209,3.91476254,79.3,79.275,13.14199978]
[1770951314384,3.91476254,79.3,79.276,0.52768253]
[1770951315001,0.30116686,79.306,79.276,0.52768253]
[1770951315203,0.30116686,79.306,79.278,0.52768253]
[1770951316308,3.91476254,79.3,79.278,0.52768253]
[1770951316502,0.30699712,79.299,79.278,0.52768253]
[1770951317003,0.30699712,79.299,79.263,0.52768253]
[1770951317308,4.22317193,79.29,79.264,12.61606782]
[1770951317488,4.22317193,79.29,79.264,13.14375035]
[1770951317901,4.22317193,79.29,79.265,0.52768253]
[1770951318103,0.30840939,79.29,79.265,0.52768253]
[1770951319205,0.31117996,79.297,79.267,0.52768253]
[1770951319406,12.60964125,79.305,79.271,0.52768253]
[1770951319407,0.31117996,79.305,79.271,0.52768253]
[1770951319987,0.31254406,79.328,79.281,0.52768253]
[1770951320183,0.31254406,79.319,79.281,0.52768253]
[1770951320404,0.31254406,79.328,79.281,0.52768253]
[1770951320797,3.91476254,79.32,79.281,0.52768253]
[1770951321002,4.22865025,79.32,79.281,0.52768253]
[1770951321211,4.22865025,79.32,79.282,44.14621225]
[1770951321416,4.22865025,79.32,79.283,0.52768253]
[1770951321708,0.31388771,79.327,79.291,0.52768253]
[1770951323394,40.28,79.333,79.292,12.61161277]
[1770951323395,3.91476254,79.32,79.292,12.61161277]
[1770951323593,0.31653631,79.319,79.293,0.52768253]
[1770951324093,0.31783843,79.329,79.293,0.52768253]
[1770951325215,0.31912438,79.328,79.293,0.52768253]
[1770951325419,3.91476254,79.33,79.294,44.13953135]
[1770951325420,40.28,79.33,79.294,44.13953135]
[1770951325713,40.28,79.33,79.295,0.52768253]
[1770951326289,12.6049275,79.335,79.295,0.52768253]
[1770951326514,53.20413019,79.342,79.301,0.52768253]
[1770951326814,3.91476254,79.34,79.301,0.52768253]
[1770951327002,4.23642114,79.34,79.301,0.52768253]
[1770951327201,0.3216586,79.339,79.301,0.52768253]
[1770951328309,0.32290107,79.329,79.302,12.61002244]
[1770951328513,0.32290107,79.329,79.303,0.52768253]
[1770951329818,0.32412804,79.327,79.303,0.52768253]
[1770951330906,0.32412804,79.327,79.304,12.60970442]
[1770951331915,0.3242566,79.319,79.291,12.61177182]
[1770951333235,0.32389981,79.309,79.283,53.1]
[1770951333427,0.32389981,79.309,79.28,0.58970371]
[1770951333631,0.32355387,79.299,79.266,0.57609868]
[1770951333843,0.32355387,79.299,79.268,0.57609868]
[1770951334224,0.32355387,79.299,79.269,13.19137072]
[1770951334753,0.32321174,79.297,79.269,13.19137072]
[1770951335417,0.32287575,79.289,79.251,0.57609868]
[1770951336534,0.32254521,79.288,79.252,0.57609868]
[1770951337047,0.32221604,79.279,79.252,0.57609868]
[1770951337232,0.32221604,79.279,79.251,12.61813731]
[1770951337848,0.32221604,79.279,79.248,0.57609868]
[1770951338038,0.32221604,79.279,79.249,12.61845575]
[1770951339045,3.91476254,79.27,79.249,12.61845575]
[1770951339840,0.32127097,79.269,79.242,12.6194801]
[1770951340141,0.32127097,79.276,79.243,0.57609868]
[1770951341440,0.32127097,79.276,79.245,0.57609868]
[1770951341638,0.32095758,79.289,79.245,0.57609868]
[1770951341844,3.91476254,79.31,79.271,0.57609868]
[1770951342021,0.32064274,79.309,79.271,0.57609868]
[1770951343234,0.32032866,79.299,79.271,0.57609868]
[1770951343536,0.32032866,79.299,79.27,12.61499583]
[1770951344036,4.23478605,79.29,79.27,12.61499583]
[1770951344240,0.32002351,79.289,79.262,13.19235941]
[1770951345839,0.31942102,79.287,79.256,0.57609868]
[1770951346024,3.91476254,79.28,79.256,0.57609868]
[1770951346231,0.31942102,79.279,79.251,12.61813731]
[1770951346426,0.31942102,79.279,79.252,0.57609868]
[1770951347737,0.31912624,79.286,79.252,0.57609868]
[1770951347931,0.31884302,79.285,79.254,0.57609868]
[1770951349828,0.31827735,79.279,79.254,0.57609868]
[1770951350240,0.31827735,79.278,79.247,0.57609868]
[1770951351642,0.31827735,79.278,79.249,0.57609868]
[1770951353746,0.31827735,79.278,79.251,0.57609868]
[1770951354056,0.31716492,79.319,79.26,3.91476254]
[1770951354229,3.91476254,79.31,79.271,0.57609868]
[1770951354629,4.23192746,79.31,79.271,0.57609868]
[1770951354839,0.31689122,79.316,79.271,0.57609868]
[1770951355039,0.31689122,79.316,79.281,0.57609868]
[1770951355224,0.31689122,79.309,79.281,0.57609868]
[1770951355731,0.31689122,79.309,79.282,12.6132035]
[1770951356130,0.31689122,79.309,79.282,13.18930218]
[1770951358645,0.31609416,79.316,79.283,0.57609868]
[1770951359345,50.39246152,79.377,79.291,0.57609868]
[1770951359346,0.3158354,79.334,79.291,0.57609868]
[1770951359746,0.3158354,79.329,79.291,0.57609868]
[1770951360563,0.3158354,79.329,79.293,0.54819043]
[1770951363139,0.3158354,79.329,79.301,0.54819043]